bitfinex/quotes_SOLUSD_20250616
["timestamp","ask_amount","ask_price","bid_price","bid_amount"]
[1750084849565,0.28432314,157.56,157.54,6.34759426]
[1750084849970,0.28432314,157.56,157.54,19.03592366]
[1750084850171,0.28432314,157.56,157.55,12.6883294]
[1750084850392,0.28432314,157.56,157.55,19.03552076]
[1750084850594,0.28432314,157.56,157.55,6.34719136]
[1750084851601,0.28432314,157.57,157.55,6.34719136]
[1750084852493,0.28432314,157.57,157.54,6.34759426]
[1750084853590,0.28432314,157.57,157.53,12.6883294]
[1750084855188,12.6883294,157.57,157.53,12.6883294]
[1750084855397,0.28432314,157.56,157.52,22.2194007]
[1750084855568,0.28432314,157.56,157.52,34.9077301]
[1750084856095,0.28432314,157.56,157.52,22.2194007]
[1750084856387,0.28432314,157.56,157.52,34.9077301]
[1750084856979,0.28432314,157.56,157.53,12.6883294]
[1750084857380,12.97265254,157.58,157.53,12.6883294]
[1750084857578,12.97265254,157.58,157.54,6.34759426]
[1750084857895,0.28432314,157.56,157.54,6.34759426]
[1750084859701,0.28432314,157.56,157.53,6.3479972]
[1750084860680,8.7479794,157.58,157.53,14.81165346]
[1750084860880,8.7479794,157.58,157.53,6.3479972]
[1750084861087,8.7479794,157.58,157.53,14.81165346]
[1750084861582,8.7479794,157.58,157.53,8.46365626]
[1750084863175,0.28432314,157.56,157.52,30.68305696]
[1750084863492,0.28432314,157.56,157.52,14.81205646]
[1750084864173,0.28432314,157.56,157.52,6.3484002]
[1750084864392,0.14216157,157.53,157.47,1.5884]
[1750084864583,0.28432314,157.5,157.46,14.81447551]
[1750084865299,0.28432314,157.5,157.47,8.46365626]
[1750084865489,0.28432314,157.5,157.48,8.46365626]
[1750084865695,0.28432314,157.54,157.49,8.46365626]
[1750084865879,0.28432314,157.54,157.5,8.46365626]
[1750084866269,8.7479794,157.54,157.49,8.46365626]
[1750084866694,12.05903941,157.54,157.49,8.46365626]
[1750084867476,12.05903941,157.54,157.47,48.22645583]
[1750084867477,8.46365626,157.53,157.47,48.22645583]
[1750084867698,0.28432314,157.52,157.49,6.34960949]
[1750084867901,8.7479794,157.52,157.49,6.34960949]
[1750084868907,0.28432314,157.5,157.47,6.35041595]
[1750084870516,8.7479794,157.5,157.47,6.35041595]
[1750084871583,8.7479794,157.48,157.43,15.22365626]
[1750084871808,0.28432314,157.46,157.43,6.76]
[1750084872115,0.28432314,157.44,157.43,6.76]
[1750084872292,8.7479794,157.44,157.43,6.76]
[1750084872814,8.7479794,157.44,157.43,13.11202947]
[1750084872815,0.28432314,157.44,157.43,13.11202947]
[1750084873193,0.28432314,157.47,157.43,37.45575941]
[1750084873412,0.28432314,157.47,157.44,8.46365626]
[1750084873998,0.28432314,157.47,157.43,37.45575941]
[1750084874205,8.7479794,157.47,157.43,28.99210315]
[1750084875124,0.28432314,157.45,157.43,13.11202947]
[1750084875718,2.3656684,157.51,157.43,13.11202947]
[1750084875890,0.28432314,157.47,157.43,13.11202947]
[1750084876222,2.3656684,157.51,157.46,8.46365626]
[1750084876394,18.64964886,157.53,157.46,8.46365626]
[1750084876589,8.46365626,157.5,157.46,8.46365626]
[1750084876784,8.7479794,157.49,157.45,6.35122261]
[1750084876980,0.28432314,157.49,157.45,14.81487887]
[1750084877177,8.46365626,157.48,157.45,6.35122261]
[1750084877381,8.7479794,157.47,157.43,26.0]
[1750084877680,8.7479794,157.47,157.41,6.35283654]
[1750084877681,0.28432314,157.44,157.41,6.35283654]
[1750084877882,0.28432314,157.43,157.41,6.35283654]
[1750084878913,0.28432314,157.41,157.37,8.46365626]
[1750084879112,0.28432314,157.41,157.36,39.1148551]
[1750084879284,0.28432314,157.41,157.38,8.46365626]
[1750084879714,8.7479794,157.41,157.36,29.00199287]
[1750084879892,0.28432314,157.41,157.36,29.00199287]
[1750084880090,0.28432314,157.41,157.36,55.00199287]
[1750084880395,8.7479794,157.41,157.36,37.46564913]
[1750084880713,0.28432314,157.38,157.36,13.1148551]
[1750084881296,0.28432314,157.38,157.36,6.3548551]
[1750084882204,8.7479794,157.38,157.34,6.35566289]
[1750084882528,0.28432314,157.35,157.34,6.35566289]
[1750084883046,8.7479794,157.35,157.32,6.35647088]
[1750084884621,0.28432314,157.35,157.32,6.35647088]
[1750084884830,0.28432314,157.33,157.32,6.35647088]
[1750084884991,8.7479794,157.33,157.32,6.35647088]
[1750084885322,0.28432314,157.32,157.31,13.11673643]
[1750084885816,8.7479794,157.32,157.31,13.11673643]
[1750084886193,0.28432314,157.32,157.31,6.76]
[1750084886397,8.7479794,157.32,157.25,6.35930047]
[1750084886609,0.28432314,157.28,157.25,6.35930047]
[1750084887911,0.28432314,157.28,157.25,30.72120792]
[1750084888318,3.31434915,157.29,157.25,22.25755166]
[1750084888809,0.28432314,157.32,157.27,8.46365626]
[1750084889006,0.28432314,157.32,157.25,22.25755166]
[1750084889007,0.28432314,157.32,157.25,15.89825119]
[1750084889325,0.28432314,157.29,157.25,24.36190745]
[1750084889630,0.28432314,157.29,157.26,8.46365626]
[1750084889833,0.28432314,157.29,157.25,24.36190745]
[1750084890328,0.28432314,157.29,157.24,14.82336116]
[1750084890540,8.46365626,157.27,157.24,6.3597049]
[1750084890716,18.933972,157.24,157.19,6.36172784]
[1750084891029,8.46365626,157.22,157.17,30.73253707]
[1750084891238,0.28432314,157.23,157.2,8.46365626]
[1750084891412,8.46365626,157.26,157.21,8.46365626]
[1750084891609,0.28432314,157.25,157.21,8.46365626]
[1750084892234,8.46365626,157.23,157.17,22.26888081]
[1750084892433,0.28432314,157.22,157.19,8.46365626]
[1750084892719,0.28432314,157.22,157.21,8.46365626]
[1750084892913,0.28432314,157.22,157.21,6.36091851]
[1750084893441,0.28432314,157.22,157.18,6.36213258]
[1750084893442,8.7479794,157.22,157.18,6.36213258]
[1750084893608,8.46365626,157.21,157.18,6.36213258]
[1750084893805,0.28432314,157.22,157.18,6.36213258]
[1750084894009,0.28432314,157.19,157.18,6.36213258]
[1750084894625,0.28432314,157.19,157.15,14.82700338]
[1750084894818,0.28432314,157.19,157.15,6.36334712]
[1750084895613,0.28432314,157.19,157.15,19.11985064]
[1750084895807,0.28432314,157.19,157.15,6.36334712]
[1750084896016,13.04082666,157.19,157.15,6.36334712]
[1750084896215,0.28432314,157.2,157.15,22.27171492]
[1750084896446,13.04082666,157.2,157.15,35.02821844]
[1750084896618,12.75650352,157.19,157.15,6.36334712]
[1750084897032,0.28432314,157.2,157.15,6.36334712]
[1750084897339,12.75650352,157.19,157.15,6.36334712]
[1750084897651,0.28432314,157.2,157.15,35.02821844]
[1750084897942,0.28432314,157.2,157.16,12.75650352]
[1750084898126,13.04082666,157.2,157.15,22.27171492]
[1750084898493,34.0788,157.23,157.15,22.27171492]
[1750084898630,0.28432314,157.2,157.16,12.75650352]
[1750084898945,13.04082666,157.2,157.16,12.75650352]
[1750084899132,13.04082666,157.2,157.15,28.66487132]
[1750084899646,0.28432314,157.2,157.17,12.75650352]
[1750084900054,0.28432314,157.2,157.18,12.75650352]
[1750084900237,12.75650352,157.23,157.15,41.9083678]
[1750084900433,13.04082666,157.24,157.15,41.9083678]
[1750084900632,0.28432314,157.22,157.15,41.9083678]
[1750084900835,13.04082666,157.22,157.15,41.9083678]
[1750084901048,13.04082666,157.22,157.18,12.75650352]
[1750084901367,0.28432314,157.22,157.18,12.75650352]
[1750084901557,0.28432314,157.22,157.19,12.75650352]
[1750084901865,13.04082666,157.22,157.15,48.27171492]
[1750084902031,13.04082666,157.22,157.18,12.75650352]
[1750084902446,13.04082666,157.22,157.15,48.27171492]
[1750084902641,0.28432314,157.22,157.18,12.75650352]
[1750084902970,18.64964886,157.26,157.21,12.75650352]
[1750084903261,31.40615238,157.26,157.22,19.11701744]
[1750084903434,0.28432314,157.25,157.22,19.11701744]
[1750084903634,0.28432314,157.25,157.22,6.36051392]
[1750084903953,13.04082666,157.25,157.22,6.36051392]
[1750084904543,0.28432314,157.25,157.22,6.36051392]
[1750084904859,0.14216157,157.25,157.22,19.11701744]
[1750084905162,0.14216157,157.25,157.22,22.26179874]
[1750084905349,12.75650352,157.27,157.22,35.01830226]
[1750084905655,12.75650352,157.27,157.22,19.11701744]
[1750084905846,12.75650352,157.26,157.22,6.36051392]
[1750084906051,0.28432314,157.25,157.22,6.36051392]
[1750084906370,0.28432314,157.25,157.22,19.11701744]
[1750084907261,0.28432314,157.25,157.22,6.36051392]
[1750084909336,0.28432314,157.27,157.22,6.36051392]
[1750084909539,0.28432314,157.24,157.22,6.36051392]
[1750084909950,0.28432314,157.24,157.22,12.75650352]
[1750084910355,18.64964886,157.3,157.23,12.75650352]
[1750084910558,12.75650352,157.29,157.25,12.75650352]
[1750084910764,3.31173174,157.27,157.25,12.75650352]
[1750084911090,3.31173174,157.27,157.26,12.75650352]
[1750084911243,15.881822,157.42,157.27,26.0]
[1750084911445,14.45774309,157.35,157.32,12.75650352]
[1750084911977,14.45774309,157.35,157.33,6.35606686]
[1750084912342,0.28432314,157.34,157.33,6.35606686]
[1750084912538,0.28432314,157.34,157.31,19.11337848]
[1750084912740,14.45774309,157.35,157.31,19.11337848]
[1750084913254,12.75650352,157.33,157.31,26.0]
[1750084913458,13.04082666,157.32,157.31,26.0]
[1750084914544,0.28432314,157.31,157.25,19.11580399]
[1750084914744,13.04082666,157.31,157.26,12.75650352]
[1750084914967,0.28432314,157.31,157.26,38.75650352]
[1750084915270,0.28432314,157.31,157.27,12.75650352]
[1750084915439,13.04082666,157.31,157.26,38.75650352]
[1750084916345,13.04082666,157.31,157.27,6.35849176]
[1750084916546,0.28432314,157.31,157.27,19.11499528]
[1750084916962,25.28971258,157.34,157.29,12.75650352]
[1750084917169,42.25774309,157.35,157.29,12.75650352]
[1750084917170,14.45774309,157.35,157.29,12.75650352]
[1750084917362,12.75650352,157.33,157.27,6.35849176]
[1750084917566,13.04082666,157.32,157.27,6.35849176]
[1750084918275,0.28432314,157.32,157.27,6.35849176]
[1750084918487,0.28432314,157.32,157.3,12.75650352]
[1750084918977,0.28432314,157.32,157.31,12.75650352]
[1750084919270,0.28432314,157.32,157.3,12.75650352]
[1750084919772,0.28432314,157.34,157.31,12.75650352]
[1750084920268,0.28432314,157.34,157.3,38.75650352]
[1750084920568,0.28432314,157.34,157.31,19.11337848]
[1750084920759,0.28432314,157.34,157.31,6.35687496]
[1750084920963,0.28432314,157.34,157.32,12.75650352]
[1750084921283,14.45774309,157.35,157.32,12.75650352]
[1750084921476,14.45774309,157.35,157.33,12.75650352]
[1750084921681,14.45774309,157.35,157.31,22.24906236]
[1750084921682,14.45774309,157.35,157.34,12.75650352]
[1750084922475,0.28432314,157.34,157.33,45.11249386]
[1750084922653,0.28432314,157.34,157.29,26.0]
[1750084922654,13.04082666,157.34,157.29,26.0]
[1750084922970,13.04082666,157.3,157.26,6.35889609]
[1750084923172,0.28432314,157.3,157.26,19.11539961]
[1750084923485,0.28432314,157.3,157.28,12.75650352]
[1750084924049,0.28432314,157.3,157.26,6.35889609]
[1750084924249,0.28432314,157.3,157.26,19.11539961]
[1750084924581,0.28432314,157.3,157.27,12.75650352]
[1750084924787,0.28432314,157.3,157.26,22.25613632]
[1750084924978,0.28432314,157.31,157.27,12.75650352]
[1750084926463,0.28432314,157.31,157.24,27.5458]
[1750084926464,13.04082666,157.31,157.25,6.35930047]
[1750084926686,13.04082666,157.31,157.26,12.75650352]
[1750084927070,0.28432314,157.29,157.25,19.11580399]
[1750084927591,13.04082666,157.29,157.25,6.35930047]
[1750084927881,6.35693079,157.31,157.22,6.7]
[1750084927882,0.28432314,157.27,157.23,12.75650352]
[1750084928063,0.28432314,157.27,157.24,12.75650352]
[1750084928399,0.28432314,157.27,157.26,12.75650352]
[1750084928712,0.28432314,157.27,157.26,19.11539961]
[1750084928856,0.28432314,157.27,157.24,19.11620842]
[1750084929959,0.28432314,157.26,157.23,19.11648868]
[1750084930171,0.14216157,157.29,157.23,6.35998516]
[1750084930367,12.75650352,157.27,157.23,6.35998516]
[1750084930593,12.75650352,157.28,157.23,19.11648868]
[1750084930764,33.911911,157.3,157.26,12.75650352]
[1750084930967,31.54831395,157.3,157.26,12.75650352]
[1750084931169,12.75650352,157.31,157.27,12.75650352]
[1750084931391,12.75650352,157.3,157.23,22.26025864]
[1750084931566,12.75650352,157.29,157.23,6.35998516]
[1750084931892,16.06953806,157.29,157.23,6.35998516]
[1750084932109,0.28432314,157.26,157.23,6.35998516]
[1750084932401,13.04082666,157.28,157.23,19.11648868]
[1750084932587,13.04082666,157.28,157.24,12.75650352]
[1750084932909,13.04082666,157.28,157.23,19.11648868]
[1750084933598,0.14216157,157.28,157.23,6.35998516]
[1750084933803,3.31303454,157.29,157.26,26.0]
[1750084933962,49.25685089,157.35,157.28,12.75650352]
[1750084933963,2.36389063,157.33,157.28,12.75650352]
[1750084934167,3.31213708,157.31,157.29,12.75650352]
[1750084934562,3.31213708,157.31,157.27,6.35849176]
[1750084934888,0.28432314,157.3,157.29,12.75650352]
[1750084935208,3.31213708,157.31,157.29,12.75650352]
[1750084935407,23.90335441,157.35,157.3,12.75650352]
[1750084935695,26.26646632,157.35,157.31,12.75650352]
[1750084935906,3.59617121,157.32,157.31,12.75650352]
[1750084936065,0.28432314,157.32,157.31,12.75650352]
[1750084936267,3.31191128,157.32,157.31,12.75650352]
[1750084936487,3.45407285,157.32,157.31,12.75650352]
[1750084936803,3.59623442,157.32,157.28,6.35808748]
[1750084936993,3.59623442,157.32,157.3,12.75650352]
[1750084937572,3.31191128,157.32,157.31,12.75650352]
[1750084937775,11.14685089,157.35,157.31,12.75650352]
[1750084937996,11.14685089,157.35,157.32,12.75650352]
[1750084938302,11.14685089,157.35,157.33,12.75650352]
[1750084938303,3.59580098,157.34,157.33,12.75650352]
[1750084938802,3.59580098,157.34,157.33,19.11257038]
[1750084938970,3.31147784,157.34,157.33,19.11257038]
[1750084939306,11.14685089,157.35,157.33,19.11257038]
[1750084939595,11.14685089,157.35,157.34,12.75650352]
[1750084940981,11.14685089,157.35,157.34,19.11216641]
[1750084942576,11.14685089,157.35,157.34,6.35566289]
[1750084943275,11.14685089,157.35,157.34,19.11216641]
[1750084944781,11.14685089,157.35,157.34,6.35566289]
[1750084944983,0.28432314,157.34,157.32,6.35647088]
[1750084945315,0.28432314,157.34,157.32,19.1129744]
[1750084945994,0.28432314,157.34,157.32,6.35647088]
[1750084946308,0.28432314,157.34,157.32,19.1129744]
[1750084948203,0.28432314,157.34,157.32,12.75650352]
[1750084949876,0.28432314,157.34,157.31,12.75650352]
[1750084950075,0.28432314,157.34,157.31,19.11309259]
[1750084950283,0.28432314,157.34,157.31,6.35658907]
[1750084951015,0.28432314,157.34,157.31,14.84516284]
[1750084951185,0.28432314,157.34,157.31,6.35658907]
[1750084951604,0.28432314,157.34,157.31,14.84516284]
[1750084952191,0.28432314,157.34,157.31,6.35658907]
[1750084952489,0.28432314,157.34,157.32,8.48857377]
[1750084952708,0.28432314,157.34,157.31,14.84516284]
[1750084952890,0.28432314,157.34,157.3,8.48857377]
[1750084953516,8.77289691,157.34,157.3,8.48857377]
[1750084953715,8.48857377,157.33,157.29,8.48857377]
[1750084954020,8.48857377,157.33,157.28,6.35808748]
[1750084954184,8.48857377,157.33,157.28,14.84666125]
[1750084954518,0.28432314,157.31,157.29,8.48857377]
[1750084954687,0.28432314,157.31,157.28,8.48857377]
[1750084954892,0.28432314,157.31,157.27,8.48857377]
[1750084955216,8.77289691,157.31,157.26,6.35889609]
[1750084955416,8.77289691,157.27,157.22,6.36051392]
[1750084955706,0.28432314,157.24,157.22,6.36051392]
[1750084956410,0.28432314,157.24,157.21,14.84935654]
[1750084957591,0.28432314,157.24,157.21,6.36078277]
[1750084957794,0.28432314,157.24,157.21,14.84935654]
[1750084958203,8.77289691,157.27,157.21,6.36078277]
[1750084958619,0.28432314,157.27,157.23,8.48857377]
[1750084958916,0.28432314,157.27,157.24,12.7439987]
[1750084959213,13.02832184,157.27,157.22,12.7439987]
[1750084959789,3.31587241,157.26,157.21,48.26307906]
[1750084959997,12.7439987,157.32,157.25,12.7439987]
[1750084960228,19.3161987,157.34,157.29,12.7439987]
[1750084960397,3.3147963,157.31,157.26,22.25613632]
[1750084960602,12.7439987,157.33,157.28,12.7439987]
[1750084960603,0.28432314,157.32,157.28,12.7439987]
[1750084960817,15.11265796,157.33,157.28,12.7439987]
[1750084960998,3.31469987,157.3,157.28,12.7439987]
[1750084961205,12.7439987,157.33,157.28,12.7439987]
[1750084961395,3.31465468,157.31,157.28,12.7439987]
[1750084961588,3.31465468,157.31,157.29,12.7439987]
[1750084962110,0.28432314,157.3,157.28,6.3578215]
[1750084962615,0.28432314,157.3,157.28,19.1018202]
[1750084963142,0.28432314,157.3,157.24,6.3597049]
[1750084963143,13.02832184,157.3,157.24,6.3597049]
[1750084963299,13.02832184,157.3,157.25,12.7439987]
[1750084963497,13.02832184,157.3,157.22,12.7439987]
[1750084963498,0.28432314,157.26,157.22,12.7439987]
[1750084964319,0.28432314,157.26,157.2,48.4823727]
[1750084964320,0.28432314,157.26,157.23,12.7439987]
[1750084964521,0.28432314,157.26,157.21,22.2632148]
[1750084964720,0.28432314,157.26,157.23,12.7439987]
[1750084965101,0.28432314,157.26,157.22,12.7439987]
[1750084966124,6.64282771,157.27,157.21,6.36091851]
[1750084966432,12.7439987,157.26,157.21,6.36079359]
[1750084966721,12.7439987,157.26,157.21,19.10479229]
[1750084967820,0.28432314,157.27,157.22,12.7439987]
[1750084968021,13.02832184,157.27,157.21,6.36079359]
[1750084968202,13.02832184,157.27,157.22,12.7439987]
[1750084968408,13.02832184,157.27,157.22,19.10414616]
[1750084968914,13.02832184,157.27,157.23,12.7439987]
[1750084969320,0.28432314,157.27,157.23,12.7439987]
[1750084969632,13.02832184,157.27,157.23,12.7439987]
[1750084970313,0.28432314,157.27,157.24,19.10350357]
[1750084970546,0.28432314,157.27,157.25,12.7439987]
[1750084970824,0.28432314,157.27,157.26,12.7439987]
[1750084971193,0.28432314,157.27,157.25,12.7439987]
[1750084971429,0.28432314,157.29,157.25,12.7439987]
[1750084971924,0.28432314,157.29,157.25,19.10291526]
[1750084972102,0.28432314,157.29,157.25,6.35891656]
[1750084972299,0.28432314,157.29,157.26,12.7439987]
[1750084973505,0.28432314,157.3,157.25,19.10291526]
[1750084973701,13.02832184,157.3,157.25,19.10291526]
[1750084975133,0.28432314,157.3,157.25,6.35891656]
[1750084975518,0.28432314,157.3,157.25,22.25716775]
[1750084975723,0.28432314,157.3,157.27,12.7439987]
[1750084976231,0.28432314,157.3,157.27,19.10210082]
[1750084977004,3.31465468,157.31,157.28,12.7439987]
[1750084977829,3.31465468,157.31,157.29,12.7439987]
[1750084978005,3.59897782,157.31,157.3,6.35727908]
[1750084978824,0.28432314,157.3,157.28,6.35808748]
[1750084980307,0.28432314,157.3,157.28,19.10208618]
[1750084980734,145.6,157.39,157.28,19.10208618]
[1750084980735,11.14685089,157.35,157.29,12.7439987]
[1750084981067,11.14685089,157.35,157.31,12.7439987]
[1750084981068,3.31504995,157.34,157.31,12.7439987]
[1750084981424,0.28432314,157.33,157.31,12.7439987]
[1750084981833,3.31504995,157.34,157.32,12.7439987]
[1750084982013,3.31504995,157.34,157.33,12.7439987]
[1750084982343,11.14685089,157.35,157.33,6.35606686]
[1750084982528,11.14685089,157.35,157.33,19.10006556]
[1750084983034,11.14685089,157.35,157.34,12.7439987]
[1750084983639,3.31462595,157.36,157.35,26.0]
[1750084983949,5.91741386,157.44,157.36,0.14216157]
[1750084984137,12.7439987,157.42,157.36,6.3548551]
[1750084984339,12.7439987,157.42,157.37,12.7439987]
[1750084984522,12.7439987,157.42,157.38,12.7439987]
[1750084984715,24.34083088,157.44,157.39,12.7439987]
[1750084984935,21.97438739,157.44,157.39,12.7439987]
[1750084985130,0.28432314,157.42,157.36,22.24199287]
[1750084985342,0.28432314,157.42,157.39,12.7439987]
[1750084985731,0.14216157,157.42,157.38,12.7439987]
[1750084986141,13.02832184,157.42,157.36,6.3548551]
[1750084986450,0.28432314,157.4,157.36,19.0988538]
[1750084986741,3.31297483,157.44,157.39,12.7439987]
[1750084987046,3.31297483,157.44,157.4,12.7439987]
[1750084987246,13.02832184,157.43,157.38,12.7439987]
[1750084987424,13.02832184,157.43,157.36,6.3548551]
[1750084987625,0.28432314,157.41,157.38,12.7439987]
[1750084988346,0.28432314,157.41,157.37,19.09837273]
[1750084989144,19.09649542,157.42,157.37,19.09837273]
[1750084989145,18.88081856,157.42,157.37,19.09837273]
[1750084989750,18.88081856,157.42,157.37,12.7439987]
[1750084989917,12.7439987,157.38,157.32,1.6534]
[1750084990122,12.7439987,157.37,157.33,12.7439987]
[1750084990322,12.7439987,157.37,157.32,12.7439987]
[1750084991043,12.7439987,157.36,157.31,19.10087366]
[1750084992438,0.28432314,157.36,157.32,12.7439987]
[1750084993260,13.02832184,157.36,157.31,19.10087366]
[1750084994240,12.7439987,157.35,157.31,6.35687496]
[1750084994536,12.7439987,157.33,157.29,6.52]
[1750084994763,6.63935084,157.36,157.29,6.52]
[1750084994764,13.02832184,157.32,157.29,6.52]
[1750084995570,13.02832184,157.32,157.29,12.8776184]
[1750084995947,0.28432314,157.32,157.29,12.8776184]
[1750084996345,25.14698108,157.36,157.29,12.8776184]
[1750084996547,12.7439987,157.33,157.29,25.6216171]
[1750084996741,12.7439987,157.33,157.29,12.8776184]
[1750084997652,12.7439987,157.31,157.29,12.87761085]
[1750084997984,12.7439987,157.32,157.29,12.87761085]
[1750084998138,12.7439987,157.31,157.29,6.52]
[1750084998579,12.7439987,157.32,157.29,12.8776072]
[1750084999091,18.933972,157.31,157.23,6.36010939]
[1750084999383,12.7439987,157.28,157.23,6.36010939]
[1750084999534,0.28432314,157.29,157.21,6.36091851]
[1750084999734,0.28432314,157.29,157.22,12.7439987]
[1750085000152,0.28432314,157.29,157.21,6.36091851]
[1750085000360,12.7439987,157.26,157.21,19.10491721]
[1750085000568,0.28432314,157.24,157.21,6.36091851]
[1750085000789,12.7439987,157.25,157.21,6.36091851]
[1750085000973,12.7439987,157.26,157.21,19.10491721]
[1750085001171,12.7439987,157.25,157.21,6.36091851]
[1750085001576,12.7439987,157.26,157.21,19.10491721]
[1750085002172,12.7439987,157.25,157.21,6.36091851]
[1750085002496,12.7439987,157.25,157.21,19.10491721]
[1750085002997,12.7439987,157.25,157.21,6.36091851]
[1750085003304,0.28432314,157.25,157.18,6.52]
[1750085003488,0.28432314,157.25,157.18,19.2639987]
[1750085003660,12.7439987,157.23,157.19,12.7439987]
[1750085003862,12.7439987,157.23,157.18,19.2639987]
[1750085004264,12.7439987,157.23,157.19,6.36159652]
[1750085004599,12.7439987,157.21,157.18,12.88208485]
[1750085004758,12.7439987,157.21,157.15,6.6143]
[1750085004759,0.28432314,157.18,157.14,19.10775076]
[1750085005105,13.02832184,157.18,157.14,6.36375206]
[1750085005388,0.28432314,157.18,157.14,6.36375206]
[1750085005592,0.28432314,157.18,157.14,19.10775076]
[1750085005966,0.28432314,157.18,157.14,6.36375206]
[1750085006162,13.02832184,157.18,157.14,19.10775076]
[1750085006483,27.5,157.22,157.15,12.7439987]
[1750085006671,13.02832184,157.21,157.16,12.7439987]
[1750085007071,0.28432314,157.21,157.16,12.7439987]
[1750085007276,0.28432314,157.2,157.16,12.7439987]
[1750085007477,0.28432314,157.2,157.17,6.36253737]
[1750085008864,3.31518594,157.23,157.17,19.10653607]
[1750085009060,3.31518594,157.23,157.18,12.7439987]
[1750085009061,13.02832184,157.22,157.18,12.7439987]
[1750085009489,13.02832184,157.22,157.17,35.01287951]
[1750085009863,0.28432314,157.22,157.18,12.7439987]
[1750085010468,0.28432314,157.22,157.19,12.7439987]
[1750085010671,13.60618968,157.23,157.18,0.14216157]
[1750085010874,13.60618968,157.23,157.22,12.7439987]
[1750085011301,26.35018838,157.23,157.17,22.26888081]
[1750085011509,12.7439987,157.21,157.17,35.01287951]
[1750085011668,12.7439987,157.21,157.17,22.26888081]
[1750085011867,12.7439987,157.2,157.17,22.26888081]
[1750085012068,12.7439987,157.21,157.17,35.01287951]
[1750085012983,13.02832184,157.22,157.18,12.7439987]
[1750085013181,0.28432314,157.22,157.18,12.7439987]
[1750085013392,26.35018838,157.23,157.21,12.7439987]
[1750085013393,13.60618968,157.23,157.21,12.7439987]
[1750085013574,13.60618968,157.23,157.2,12.7439987]
[1750085013777,13.60618968,157.23,157.2,22.26463103]
[1750085014208,13.60618968,157.23,157.2,35.00862973]
[1750085014510,13.60618968,157.23,157.2,22.26463103]
[1750085015369,26.35018838,157.23,157.2,22.26463103]
[1750085015572,13.60618968,157.23,157.2,22.26463103]
[1750085015870,13.60618968,157.23,157.17,31.81268689]
[1750085017096,13.02832184,157.22,157.18,12.7439987]
[1750085017791,0.28432314,157.22,157.19,12.7439987]
[1750085018002,0.28432314,157.22,157.2,6.36132315]
[1750085020307,0.28432314,157.22,157.19,6.36172784]
[1750085020513,0.28432314,157.22,157.19,14.86304018]
[1750085020676,0.28432314,157.22,157.19,22.26604745]
[1750085021585,0.28432314,157.22,157.19,30.76735979]
[1750085022399,0.28432314,157.22,157.19,22.26604745]
[1750085023585,0.28432314,157.22,157.2,8.50131234]
[1750085024295,0.28432314,157.22,157.19,30.76735979]
[1750085024500,13.60618968,157.23,157.19,22.26604745]
[1750085024700,10.29100374,157.23,157.19,30.76735979]
[1750085025006,3.31414047,157.22,157.19,30.76735979]
[1750085026114,3.31414047,157.22,157.19,6.36172784]
[1750085026299,3.31414047,157.22,157.19,8.50131234]
[1750085026814,3.31414047,157.22,157.16,22.26935336]
[1750085026991,3.31414047,157.22,157.19,8.50131234]
[1750085027191,3.31414047,157.22,157.2,8.50131234]
[1750085027507,3.31414047,157.22,157.21,8.50131234]
[1750085028303,3.31414047,157.22,157.21,14.86223085]
[1750085028493,10.29100374,157.23,157.21,40.86223085]
[1750085028683,10.29100374,157.23,157.22,8.50131234]
[1750085030492,10.29100374,157.23,157.22,14.86182626]
[1750085033114,10.29100374,157.23,157.22,15.00398783]
[1750085033302,10.29100374,157.23,157.22,33.65363669]
[1750085033506,11.27377448,157.26,157.25,26.0]
[1750085033722,11.27377448,157.26,157.25,34.50131234]
[1750085034212,11.27377448,157.26,157.25,40.86061281]
[1750085034614,3.3140737,157.27,157.25,40.86061281]
[1750085034915,3.3140737,157.27,157.26,8.50131234]
[1750085036419,3.3140737,157.27,157.26,14.86020843]
[1750085036593,18.64964886,157.26,157.15,33.35382129]
[1750085036793,8.50131234,157.21,157.16,14.86425456]
[1750085037196,8.50131234,157.21,157.16,6.36294222]
[1750085037416,8.50131234,157.21,157.16,14.86425456]
[1750085037919,0.28432314,157.21,157.18,8.50131234]
[1750085038722,8.78563548,157.21,157.16,22.27029778]
[1750085039015,13.03979953,157.21,157.17,12.75547639]
[1750085039223,13.03979953,157.21,157.16,22.27029778]
[1750085039407,13.03979953,157.21,157.17,12.75547639]
[1750085039720,0.28432314,157.21,157.17,12.75547639]
[1750085040220,0.28432314,157.23,157.17,12.75547639]
[1750085040404,36.08268498,157.24,157.16,22.27029778]
[1750085040405,0.28432314,157.21,157.16,22.27029778]
[1750085040610,0.28432314,157.21,157.17,12.75547639]
[1750085040809,0.28432314,157.21,157.18,12.75547639]
[1750085041410,0.28432314,157.21,157.16,22.27029778]
[1750085041609,13.03979953,157.21,157.17,12.75547639]
[1750085041828,13.03979953,157.21,157.16,6.36294222]
[1750085041829,0.28432314,157.21,157.16,6.36294222]
[1750085042007,12.75547639,157.2,157.16,22.27029778]
[1750085042217,0.28432314,157.21,157.16,35.02577417]
[1750085042421,12.75547639,157.2,157.16,22.27029778]
[1750085042732,0.28432314,157.21,157.16,35.02577417]
[1750085042927,12.75547639,157.2,157.16,35.02577417]